bitfinex-derivatives/quotes_SOLF0:USTF0_20251119
["timestamp","ask_amount","ask_price","bid_price","bid_amount"]
[1763566479294,0.05460574,135.53,135.51,6.6461]
[1763566479591,3.13,135.61,135.51,6.6461]
[1763566479592,3.13,135.61,135.52,103.3806]
[1763566479795,3.13,135.61,135.49,143.4803482]
[1763566480093,3.13,135.61,135.51,103.3869]
[1763566480492,0.05025069,135.57,135.55,0.05552228]
[1763566481891,3.18025069,135.57,135.55,0.05552228]
[1763566482396,3.18025069,135.57,135.49,40.67034]
[1763566482397,9.82385069,135.57,135.49,17.84334]
[1763566482586,3.13,135.56,135.49,17.84334]
[1763566482994,3.13,135.53,135.49,17.84334]
[1763566483391,3.13,135.53,135.43,16.18]
[1763566483599,0.43639353,135.5,135.43,16.18]
[1763566484006,0.43639353,135.5,135.42,3.08]
[1763566484784,0.43639353,135.5,135.43,6.6501]
[1763566485103,0.43639353,135.5,135.42,3.08]
[1763566485286,7.08349353,135.5,135.42,9.7306]
[1763566485483,7.08349353,135.5,135.42,3.08]
[1763566485700,0.43639353,135.5,135.42,3.08]
[1763566485891,7.0376,135.49,135.42,3.08]
[1763566486095,0.04667984,135.47,135.42,3.08]
[1763566486292,0.43667984,135.47,135.39,6.6522]
[1763566486494,0.43667984,135.47,135.39,9.7322]
[1763566486692,0.43667984,135.47,135.39,3.08]
[1763566486996,7.08517984,135.47,135.39,3.08]
[1763566487197,0.43667984,135.47,135.39,3.08]
[1763566487392,0.43667984,135.47,135.39,9.7321]
[1763566487795,0.43667984,135.47,135.39,3.08]
[1763566488001,0.04667984,135.47,135.39,106.5548]
[1763566488195,0.04667984,135.47,135.4,3.08]
[1763566488502,0.04667984,135.47,135.41,103.4635]
[1763566488696,0.04667984,135.47,135.41,3.08]
[1763566488893,0.04667984,135.47,135.41,9.7311]
[1763566489189,0.04667984,135.47,135.41,3.08]
[1763566489993,0.04667984,135.47,135.42,9.7306]
[1763566490189,0.04667984,135.47,135.39,3.08]
[1763566490391,0.04667984,135.47,135.4,3.08]
[1763566490993,0.04667984,135.47,135.41,9.731]
[1763566491196,0.04667984,135.47,135.39,103.4768]
[1763566491197,0.0497792,135.45,135.42,3.08]
[1763566491399,0.04830524,135.45,135.42,3.08]
[1763566491608,0.39,135.52,135.44,3.08]
[1763566492809,0.05621065,135.49,135.47,0.05501932]
[1763566494213,0.44621065,135.49,135.47,0.05501932]
[1763566494708,0.05621065,135.49,135.47,0.05501932]
[1763566495007,0.05621065,135.49,135.47,3.13501932]
[1763566495202,0.05621065,135.49,135.47,0.05501932]
[1763566497609,0.05621065,135.49,135.47,3.13501932]
[1763566497806,0.05621065,135.49,135.47,0.05501932]
[1763566498705,0.44621065,135.49,135.47,0.05501932]
[1763566499006,0.05621065,135.49,135.47,0.05501932]
[1763566499402,0.44621065,135.49,135.47,0.05501932]
[1763566499602,0.05621065,135.49,135.47,0.05501932]
[1763566500715,0.44621065,135.49,135.47,0.05501932]
[1763566501312,0.05621065,135.49,135.47,0.05501932]
[1763566501711,0.05621065,135.49,135.47,3.13501932]
[1763566502213,0.44621065,135.49,135.47,0.05501932]
[1763566502808,0.39,135.48,135.37,22.0351088]
[1763566503003,0.39,135.48,135.38,3.08]
[1763566503302,0.39,135.48,135.4,6.6517]
[1763566503613,0.39,135.48,135.4,3.08]
[1763566503806,0.05575653,135.45,135.4,3.08]
[1763566504107,0.05575653,135.45,135.41,5.02731]
[1763566504315,0.05575653,135.45,135.42,3.08]
[1763566504500,0.44575653,135.45,135.41,1.94731]
[1763566505714,0.39,135.42,135.41,1.94731]
[1763566506110,6.6519,135.4,135.34,3.08]
[1763566506314,103.4448,135.44,135.34,3.08]
[1763566506315,103.4122,135.48,135.34,3.08]
[1763566506611,0.05014181,135.42,135.34,3.08]
[1763566507006,0.05014181,135.42,135.38,3.08]
[1763566507218,103.4045,135.49,135.39,3.08]
[1763566507407,6.6486,135.47,135.39,3.08]
[1763566507602,103.3971,135.5,135.39,3.08]
[1763566507808,119.5619,135.52,135.41,3.05]
[1763566508015,103.362,135.55,135.43,3.05]
[1763566508315,0.05043347,135.5,135.48,0.05264878]
[1763566508512,0.04851446,135.5,135.48,0.05264878]
[1763566509914,0.04851446,135.5,135.39,3.05]
[1763566510216,103.4117,135.48,135.39,3.05]
[1763566510513,6.6486,135.47,135.39,3.05]
[1763566510918,0.05183096,135.44,135.39,3.05]
[1763566511616,0.00183096,135.44,135.4,3.05]
[1763566511821,12.05205714,135.51,135.4,3.05]
[1763566512122,103.3841,135.52,135.4,3.05]
[1763566512319,16.18,135.54,135.43,3.05]
[1763566512516,16.18,135.54,135.44,3.05]
[1763566512716,6.66025059,135.6,135.48,3.05]
[1763566512912,12.06053582,135.59,135.48,3.05]
[1763566513117,6.6427,135.59,135.48,3.05]
[1763566513315,108.75345798,135.58,135.48,3.05]
[1763566513515,5.41785798,135.57,135.48,3.05]
[1763566513709,0.05602538,135.54,135.51,0.04829447]
[1763566513912,0.05201201,135.54,135.51,3.09952331]
[1763566514317,109.94395059,135.65,135.53,3.05]
[1763566514613,5.43253678,135.64,135.53,3.05]
[1763566514812,5.43253678,135.63,135.53,3.05]
[1763566515019,103.2909,135.64,135.53,3.05]
[1763566515321,0.05410555,135.6,135.57,0.05582898]
[1763566515729,5.49231622,135.6,135.57,0.05582898]
[1763566515918,5.43821067,135.59,135.57,0.05582898]
[1763566516115,0.05410555,135.6,135.57,0.05582898]
[1763566517426,0.05410555,135.6,135.57,3.10582898]
[1763566517815,0.05410555,135.6,135.57,0.05582898]
[1763566518020,103.3554,135.56,135.43,3.05]
[1763566518221,103.3981,135.5,135.39,3.05]
[1763566518415,5.44283428,135.49,135.39,3.05]
[1763566518618,5.44280436,135.48,135.39,3.05]
[1763566518814,6.66025059,135.51,135.39,3.05]
[1763566519022,0.04803013,135.46,135.44,0.04703067]
[1763566519328,5.44398837,135.49,135.44,3.09703067]
[1763566519522,16.18,135.55,135.45,3.05]
[1763566519719,5.45150855,135.54,135.46,3.05]
[1763566519930,5.45150855,135.53,135.46,3.05]
[1763566520127,110.01375059,135.56,135.46,3.05]
[1763566520320,12.10603834,135.55,135.46,3.05]
[1763566520516,0.04845288,135.52,135.5,0.04710087]
[1763566520827,5.44578775,135.51,135.5,0.04962192]
[1763566522416,0.04877551,135.52,135.5,0.04962192]
[1763566523624,0.04877551,135.52,135.5,3.09962192]
[1763566523825,109.99095059,135.59,135.5,3.09962192]
[1763566523826,5.44899491,135.56,135.5,3.09962192]
[1763566524025,6.6422,135.6,135.5,3.05]
[1763566524334,5.44988381,135.59,135.5,3.05]
[1763566524534,12.09258381,135.59,135.5,3.05]
[1763566524736,5.44988381,135.58,135.5,3.05]
[1763566524932,0.04926146,135.55,135.53,3.16442771]
[1763566525229,13.29985059,135.65,135.55,3.11]
[1763566525431,128.334938,135.67,135.55,3.11]
[1763566525432,5.4515617,135.64,135.55,3.11]
[1763566525729,103.285,135.65,135.55,3.11]
[1763566525931,103.3062,135.62,135.5,3.11]
[1763566526136,0.04919735,135.57,135.55,0.05155131]
[1763566526332,0.04935721,135.57,135.55,0.05155131]
[1763566531034,0.04935721,135.57,135.48,6.6476]
[1763566531236,5.44741687,135.58,135.49,3.11]
[1763566531533,128.759603,135.6,135.49,9.757]
[1763566531732,5.44848394,135.59,135.49,9.757]
[1763566532038,0.04969396,135.55,135.53,0.04793211]
[1763566532630,0.04969396,135.55,135.46,3.11]
[1763566532933,112.632003,135.56,135.46,3.11]
[1763566533131,6.6441,135.56,135.46,3.11]
[1763566533340,103.3514,135.56,135.46,3.11]
[1763566533529,112.607503,135.59,135.47,3.11]
[1763566533732,112.607503,135.59,135.52,0.05422978]
[1763566533733,0.04885744,135.54,135.52,0.05422978]
[1763566533934,0.05636106,135.54,135.52,0.05422978]
[1763566534641,0.05636106,135.54,135.52,3.16422978]
[1763566534836,6.6412,135.62,135.53,3.11]
[1763566535143,9.276303,135.65,135.53,3.11]
[1763566535440,5.33877022,135.64,135.54,3.11]
[1763566535632,16.16,135.68,135.54,3.11]
[1763566535633,16.16,135.68,135.56,3.11]
[1763566535838,0.05302194,135.63,135.61,0.05174643]
[1763566536038,0.05483621,135.63,135.61,0.05174643]
[1763566536341,19.73890357,135.61,135.57,3.11]
[1763566536530,19.73890357,135.61,135.53,3.11]
[1763566537331,6.69126037,135.58,135.56,0.05116262]
[1763566538641,104.86856037,135.58,135.49,3.11]
[1763566538840,103.351,135.56,135.45,3.24]
[1763566539144,6.6451,135.54,135.45,3.24]
[1763566539534,0.05396526,135.51,135.49,3.24]
[1763566539733,0.05396526,135.51,135.49,0.05114083]
[1763566539734,0.05539623,135.51,135.49,0.05114083]
[1763566540140,0.05539623,135.51,135.49,3.29114083]
[1763566540642,0.05539623,135.51,135.49,0.05114083]
[1763566541437,0.05539623,135.51,135.49,3.29114083]
[1763566541637,9.276303,135.59,135.49,3.29114083]
[1763566541841,123.05840357,135.61,135.5,3.24]
[1763566542044,6.6431,135.58,135.5,3.24]
[1763566542443,6.6436,135.57,135.5,3.24]
[1763566542839,0.05623967,135.55,135.52,0.0506627]
[1763566543846,6.70083967,135.55,135.52,0.0506627]
[1763566544844,0.05623967,135.55,135.52,0.0506627]
[1763566546147,6.70083967,135.55,135.52,0.0506627]
[1763566546347,6.11123356,135.55,135.52,0.0506627]
[1763566546553,6.11123356,135.55,135.45,3.24]
[1763566546739,6.6448,135.55,135.46,3.24]
[1763566546948,6.05499389,135.53,135.42,3.24]
[1763566547142,16.16,135.56,135.44,3.24]
[1763566547445,0.05233183,135.51,135.49,0.04757364]
[1763566547641,0.05354497,135.51,135.49,0.04757364]
[1763566548551,6.70014497,135.51,135.49,0.04757364]
[1763566548746,0.05354497,135.51,135.49,0.04757364]
[1763566549246,6.70004497,135.51,135.49,0.04757364]
[1763566550444,0.05354497,135.51,135.49,0.04757364]
[1763566550944,6.69994497,135.51,135.49,0.04757364]
[1763566552153,0.05354497,135.51,135.49,0.04757364]
[1763566553361,0.05354497,135.51,135.49,3.28757364]
[1763566553856,0.05354497,135.51,135.49,0.04757364]
[1763566554357,0.05354497,135.51,135.43,3.24]
[1763566554561,6.6465,135.51,135.44,9.8894]
[1763566554859,6.05499389,135.53,135.44,3.24]
[1763566555051,103.3615,135.55,135.44,3.24]
[1763566555253,6.69438686,135.51,135.48,0.04962278]
[1763566556159,6.6469,135.5,135.48,0.04962278]
[1763566556356,0.04788686,135.51,135.48,0.04962278]
[1763566557853,6.69438686,135.51,135.48,0.04962278]
[1763566558047,0.04788686,135.51,135.48,3.28962278]
[1763566560351,103.3233,135.6,135.51,3.24]
[1763566560558,103.3378,135.58,135.47,3.24]
[1763566560762,103.3593,135.55,135.47,3.24]
[1763566560965,6.05499389,135.58,135.47,3.24]
[1763566561263,5.38618383,135.57,135.47,3.24]
[1763566561568,0.05218891,135.54,135.51,3.29048363]
[1763566561964,0.05218891,135.54,135.51,0.05048363]
[1763566562260,19.73890357,135.61,135.51,3.29048363]
[1763566562463,6.6426,135.59,135.51,3.24]
[1763566562664,19.73890357,135.61,135.51,3.24]
[1763566562863,5.40277936,135.6,135.51,3.24]
[1763566563062,103.336,135.58,135.51,3.24]
[1763566563266,0.05411848,135.56,135.53,0.05251167]
[1763566564164,0.05411848,135.56,135.53,3.29251167]
[1763566565154,0.05411848,135.56,135.53,0.05251167]
[1763566566563,5.4545388,135.56,135.53,0.05251167]
[1763566566764,103.3812,135.52,135.43,3.24]
[1763566567069,6.05499389,135.54,135.43,3.24]
[1763566567262,6.70893471,135.57,135.46,103.4259]
[1763566567462,5.40089036,135.56,135.48,3.24]
[1763566567660,109.38779389,135.59,135.48,3.24]
[1763566567661,6.6431,135.58,135.48,3.24]
[1763566567865,0.05423589,135.54,135.52,0.0475083]
[1763566568166,0.05550228,135.54,135.52,3.2575083]
[1763566568564,0.05550228,135.54,135.52,0.0475083]
[1763566569071,0.05550228,135.54,135.52,3.2575083]
[1763566569271,129.76473828,135.61,135.52,3.2575083]
[1763566569465,108.72912721,135.6,135.52,3.21]
[1763566569665,5.40672721,135.59,135.52,3.21]
[1763566569865,19.73890357,135.61,135.52,3.21]
[1763566570176,5.40759169,135.6,135.52,3.21]
[1763566570374,0.05288185,135.58,135.55,0.05469377]
[1763566571688,0.05288185,135.58,135.55,3.26469377]
[1763566572177,0.05288185,135.58,135.55,0.05469377]
[1763566572569,108.79870284,135.58,135.55,0.05469377]
[1763566572776,103.39118185,135.58,135.55,0.05469377]
[1763566573069,5.40298019,135.57,135.55,0.05469377]
[1763566573270,12.04658019,135.57,135.55,0.05469377]
[1763566573473,6.6436,135.57,135.55,0.05469377]
[1763566574175,103.3588,135.55,135.48,3.21]
[1763566574471,5.40420769,135.54,135.46,3.21]
[1763566574666,109.40099389,135.57,135.46,3.21]
[1763566574976,110.04743471,135.58,135.46,3.21]
[1763566574977,12.04893669,135.56,135.46,3.21]
[1763566575274,109.39349389,135.58,135.46,3.21]
[1763566575275,0.04848853,135.53,135.5,0.05452076]
[1763566575464,0.04848853,135.53,135.5,3.26452076]
[1763566576473,6.646,135.52,135.5,0.05452076]
[1763566577063,0.04848853,135.53,135.5,0.05452076]
[1763566577267,114.84368428,135.52,135.42,3.21]
[1763566577469,12.05059039,135.51,135.42,3.21]
[1763566577669,103.3762,135.53,135.42,3.21]
[1763566577978,5.404072,135.52,135.42,3.21]
[1763566578176,0.04894432,135.48,135.46,3.25677402]
[1763566578966,12.7639286,135.56,135.47,3.21]
[1763566578967,5.39978352,135.55,135.47,3.21]
[1763566579171,108.76578352,135.54,135.47,3.21]
[1763566579473,5.39978352,135.53,135.42,3.21]
[1763566579670,6.6461,135.52,135.42,3.21]
[1763566579869,0.05047688,135.48,135.46,3.26004141]
[1763566580376,12.7639286,135.58,135.46,1.53004141]
[1763566580567,5.40354855,135.57,135.47,3.21]
[1763566580768,5.40354855,135.57,135.48,3.21]
[1763566580974,5.40354855,135.56,135.48,3.21]
[1763566581274,5.40354855,135.56,135.41,119.6017]
[1763566581275,5.40354855,135.55,135.44,3.21]
[1763566581470,0.05170499,135.51,135.48,3.2659297]
[1763566581674,116.1022286,135.58,135.48,3.2659297]
[1763566581675,5.40908679,135.57,135.48,3.25804665]
[1763566581872,39.14443217,135.61,135.5,3.21]
[1763566582065,5.41221719,135.6,135.51,3.21]
[1763566582378,19.73890357,135.61,135.54,106.5752]
[1763566582570,19.73890357,135.61,135.55,3.21]
[1763566582874,19.73890357,135.61,135.58,3.21]
[1763566583775,19.7916872,135.61,135.56,3.2653935]
[1763566585061,19.7916872,135.61,135.56,0.0553935]
[1763566585461,19.7916872,135.61,135.56,3.1853935]
[1763566586275,5.40778443,135.6,135.56,0.0553935]
[1763566587080,19.7916872,135.61,135.56,0.0553935]
[1763566587470,19.7916872,135.61,135.56,3.1853935]
[1763566590785,26.4334872,135.61,135.56,0.0553935]
[1763566590970,19.7916872,135.61,135.56,0.0553935]
[1763566591474,6.6421,135.6,135.56,0.0553935]
[1763566592174,6.6427,135.59,135.56,0.0553935]
[1763566592475,19.7916872,135.61,135.56,0.0553935]
[1763566592882,5.40073576,135.6,135.56,0.0553935]
[1763566593183,123.1075872,135.61,135.56,0.0553935]
[1763566593388,6.6431,135.58,135.56,0.0553935]
[1763566593587,6.6431,135.58,135.5,3.13]
[1763566593777,6.05499389,135.59,135.5,3.13]
[1763566593976,6.6428,135.59,135.5,3.13]
[1763566594175,19.73890357,135.61,135.51,3.13]
[1763566594668,0.0482503,135.57,135.55,0.0491714]
[1763566594878,19.73890357,135.61,135.56,3.13]
[1763566595879,0.04726635,135.6,135.56,3.13]
[1763566596387,17.08558263,135.61,135.57,3.13]
[1763566596977,8.08499389,135.7,135.58,103.3352]
[1763566597175,5.40397744,135.69,135.58,103.3352]
[1763566597479,0.04955545,135.65,135.62,0.04666885]
[1763566599580,0.04955545,135.65,135.62,16.16666885]
[1763566599880,3.15,135.74,135.63,103.2965]
[1763566600180,3.15,135.74,135.64,103.2891]
[1763566600369,3.15,135.74,135.6,109.37229389]
[1763566600575,3.15,135.74,135.61,16.12]
[1763566600772,0.05121267,135.69,135.66,0.05290145]
[1763566600969,3.20121267,135.69,135.66,0.05290145]
[1763566601977,0.05121267,135.69,135.66,0.05290145]
[1763566602787,3.20121267,135.69,135.66,0.05290145]
[1763566603284,3.20121267,135.69,135.56,6.05499389]
[1763566603285,3.20121267,135.69,135.58,16.12]
[1763566603287,3.15,135.67,135.58,16.12]
[1763566603483,3.15,135.66,135.53,103.3692]
[1763566603672,3.15,135.64,135.54,16.12]
[1763566603980,9.7907,135.63,135.54,16.12]
[1763566604183,0.0479306,135.6,135.57,0.05070482]
[1763566605987,3.1979306,135.6,135.57,0.05070482]
[1763566607275,3.1979306,135.6,135.43,165.4488]
[1763566607482,3.15,135.57,135.43,62.0]
[1763566607780,3.15,135.57,135.45,103.4328]
[1763566607981,3.15,135.61,135.47,103.4163]
[1763566608180,3.15,135.61,135.48,103.4105]
[1763566608380,0.05616982,135.56,135.53,0.04951863]
[1763566616889,3.20616982,135.56,135.53,0.04951863]
[1763566618494,3.15,135.54,135.43,6.6801]
[1763566618788,3.15,135.52,135.43,0.03]
[1763566619390,3.15,135.48,135.46,0.05535033]
[1763566619578,0.04847398,135.49,135.46,0.05535033]
[1763566619782,3.19847398,135.49,135.46,0.05535033]
[1763566620286,0.04847398,135.49,135.46,0.05535033]
[1763566620484,0.04847398,135.49,135.46,0.08535033]
[1763566620680,3.19847398,135.49,135.46,0.05535033]
[1763566620988,3.15,135.47,135.38,0.09]
[1763566621494,3.15,135.47,135.39,0.09]
[1763566621680,3.15,135.51,135.44,6.7393]
[1763566621880,0.05556572,135.49,135.46,0.05637126]
[1763566622082,3.20556572,135.49,135.46,0.05637126]
[1763566622276,0.05556572,135.49,135.46,0.05637126]
[1763566622690,3.20556572,135.49,135.46,0.05637126]
[1763566623195,3.20556572,135.49,135.39,0.09]
[1763566623400,3.15,135.49,135.39,0.09]
[1763566623789,3.15,135.49,135.4,0.15]
[1763566624191,0.05052112,135.46,135.43,0.05488978]
[1763566624387,3.20052112,135.46,135.43,0.05488978]
[1763566624887,3.20052112,135.46,135.38,21.69774504]
[1763566625084,3.15,135.46,135.37,0.15]
[1763566625292,3.15,135.44,135.32,0.15]
[1763566625793,0.04923558,135.39,135.37,0.02664138]
[1763566625991,0.05156232,135.39,135.37,0.02664138]
[1763566626496,3.20156232,135.39,135.37,0.02664138]
[1763566626686,3.20156232,135.39,135.32,0.15]
[1763566626886,3.20156232,135.39,135.24,9.26696919]
[1763566626887,3.15,135.37,135.24,103.7416]
[1763566627091,3.15,135.35,135.24,0.15]
[1763566627290,3.15,135.33,135.24,0.15]
[1763566627883,0.0479789,135.3,135.19,103.6295]
[1763566628193,0.04692336,135.26,135.21,0.15]
[1763566628394,0.04692336,135.26,135.22,103.608]
[1763566628589,0.04692336,135.26,135.23,0.15]
[1763566628790,0.04692336,135.26,135.24,0.15]
[1763566629802,0.04692336,135.26,135.25,0.15]
[1763566629990,3.29,135.34,135.25,0.15]
[1763566630186,3.29,135.34,135.26,110.2381]
[1763566630392,3.29,135.38,135.29,103.5567]
[1763566630595,3.29,135.38,135.3,103.5483]
[1763566630792,3.29,135.38,135.3,103.5473]
[1763566630995,0.05131236,135.35,135.34,0.1]
[1763566631297,0.05169966,135.36,135.34,0.1]
[1763566631596,0.00398956,135.36,135.35,0.1]
[1763566631791,3.29,135.46,135.38,6.6524]
[1763566632187,3.29,135.46,135.36,0.05]
[1763566632388,3.29,135.46,135.34,0.05]
[1763566632586,3.29,135.46,135.35,16.12]
[1763566632797,0.05449162,135.42,135.4,0.05]
[1763566633201,16.12,135.56,135.43,103.4491]
[1763566633404,3.29,135.55,135.47,103.4185]
[1763566633797,3.29,135.55,135.46,103.4259]
[1763566634100,103.3036,135.63,135.49,103.3997]
[1763566634101,3.29,135.6,135.49,103.3997]
[1763566634306,3.29,135.6,135.52,103.381]
[1763566634491,9.26696919,135.64,135.54,6.6448]
[1763566634492,0.05444691,135.56,135.54,6.6448]
[1763566634805,0.05257501,135.56,135.54,0.05621903]
[1763566635106,3.29,135.64,135.54,224.38481903]
[1763566635403,3.29,135.64,135.54,16.12]
[1763566635593,3.29,135.64,135.54,119.4853]
[1763566635806,3.29,135.64,135.54,16.12]
[1763566635995,0.04726045,135.6,135.58,0.0548167]
[1763566636196,0.04726045,135.6,135.58,103.3872167]
[1763566636404,3.29,135.68,135.6,109.9582]
[1763566636699,3.29,135.72,135.61,103.3092]
[1763566637004,26.2898745,135.79,135.6,119.4363]
[1763566637005,3.29,135.76,135.68,103.2547]
[1763566637201,3.29,135.76,135.68,103.2581]
[1763566637499,3.33991313,135.73,135.71,0.05661038]
[1763566637699,3.34022848,135.73,135.71,0.05059082]
[1763566637895,3.34022848,135.73,135.59,103.3247]
[1763566637896,3.29,135.72,135.65,16.12]
[1763566638299,3.29,135.72,135.61,103.3091]
[1763566638500,3.29,135.72,135.58,9.26696919]
[1763566638700,3.29,135.72,135.61,103.3096]
[1763566639004,0.04869601,135.68,135.65,103.3285656]
[1763566639196,0.05187866,135.68,135.65,16.17661698]
[1763566640005,0.05187866,135.68,135.66,103.2706]
[1763566640406,0.05187866,135.68,135.65,119.45551698]
[1763566640800,0.05187866,135.68,135.65,16.17661698]
[1763566641005,0.05187866,135.68,135.65,0.05661698]
[1763566641308,0.00187866,135.68,135.65,0.05661698]
[1763566641900,0.00187866,135.68,135.66,103.2714]
[1763566642302,0.00187866,135.68,135.65,103.33561698]
[1763566642892,0.00187866,135.68,135.65,0.05661698]
[1763566643396,3.29187866,135.68,135.65,0.05661698]
[1763566643598,3.29,135.67,135.54,103.3623]
[1763566643805,3.29,135.67,135.58,16.1]
[1763566644309,3.29,135.67,135.56,103.3466]
[1763566644310,3.29,135.67,135.56,109.9938]
[1763566644512,0.05154391,135.63,135.6,0.05514943]
[1763566644915,0.05154391,135.63,135.6,110.01504943]
[1763566645111,3.28,135.71,135.61,103.3092]
[1763566645410,3.28,135.71,135.62,103.3017]
[1763566645607,3.28,135.76,135.66,103.2705]
[1763566645810,3.28,135.76,135.67,16.1]
[1763566646310,0.05214097,135.73,135.7,0.048949]
[1763566647112,3.28,135.8,135.72,103.2273]
[1763566647407,3.28,135.8,135.73,16.1]
[1763566647614,3.28,135.85,135.74,103.2112]
[1763566647802,3.28,135.85,135.73,16.1]
[1763566648202,3.33355835,135.8,135.78,0.04781549]
[1763566648410,3.33460877,135.8,135.78,0.04781549]
[1763566648914,4.76,135.79,135.72,16.1]
[1763566649105,3.28,135.79,135.72,16.1]
[1763566649406,3.28,135.79,135.69,6.6375]
[1763566649610,3.28,135.79,135.69,16.1]
[1763566649910,3.33337208,135.75,135.73,0.04904683]
[1763566650114,3.33416624,135.75,135.73,0.04800964]
[1763566650613,0.05416624,135.75,135.73,0.04800964]
[1763566651121,3.33416624,135.75,135.73,0.04800964]
[1763566652214,3.33416624,135.75,135.67,16.08]
[1763566653210,0.05416624,135.75,135.7,0.05596207]
[1763566653805,3.33416624,135.75,135.7,0.05596207]
[1763566654203,0.05416624,135.75,135.7,0.05596207]
[1763566654509,3.28,135.83,135.73,103.221]
[1763566654697,3.28,135.83,135.74,103.2125]
[1763566655018,3.28,135.83,135.75,103.2054]
[1763566655212,3.28,135.83,135.75,119.2854]
[1763566655510,3.28,135.87,135.78,0.04696503]
[1763566655710,3.28,135.87,135.81,0.04938065]
[1763566655902,3.33429944,135.84,135.81,0.04938065]
[1763566656100,3.32652034,135.84,135.81,0.05619733]
[1763566657108,3.32652034,135.84,135.72,103.228]
[1763566657309,3.28,135.84,135.73,16.08]
[1763566657507,106.4362,135.82,135.66,103.272]
[1763566657710,3.27,135.8,135.67,16.08]
[1763566657910,3.27,135.79,135.69,103.2507]
[1763566658105,3.27,135.79,135.67,16.08]
[1763566658106,0.04860616,135.75,135.67,16.08]
[1763566658311,0.04860616,135.75,135.7,0.05604431]
[1763566659215,3.31860616,135.75,135.7,0.05604431]
[1763566660015,0.04860616,135.75,135.7,0.05604431]
[1763566660212,3.31860616,135.75,135.7,0.05604431]
[1763566661510,0.04860616,135.75,135.7,0.05604431]
[1763566662317,0.04860616,135.75,135.7,6.69284431]
[1763566662622,0.04860616,135.75,135.7,0.05604431]
[1763566662823,3.31860616,135.75,135.7,0.05604431]
[1763566663017,0.04860616,135.75,135.7,0.05604431]
[1763566663210,3.31860616,135.75,135.7,0.05604431]
[1763566663916,0.04860616,135.75,135.7,103.29694431]
[1763566664120,0.04860616,135.75,135.73,6.6354]
[1763566664424,0.04860616,135.75,135.7,103.29694431]
[1763566664620,0.04860616,135.75,135.71,103.2353]
[1763566665018,3.27,135.83,135.74,103.2112]
[1763566665227,3.27,135.83,135.75,16.08]
[1763566665720,3.27,135.83,135.71,16.08]
[1763566665925,3.27,135.82,135.69,103.2484]
[1763566666120,3.31998275,135.78,135.76,0.04698466]
[1763566666314,3.32615679,135.78,135.67,9.26696919]
[1763566666516,3.27,135.78,135.68,119.3378]
[1763566666716,3.27,135.78,135.68,22.7178]
[1763566666925,3.27,135.78,135.68,119.3363]
[1763566667117,3.27,135.78,135.68,16.08]
[1763566667321,3.27,135.78,135.68,119.3364]
[1763566667628,0.0519759,135.74,135.72,0.05096879]
[1763566668425,3.3219759,135.74,135.72,0.05096879]
[1763566670427,3.3219759,135.74,135.64,103.2867]
[1763566670620,3.3219759,135.74,135.65,16.06]
[1763566670621,3.27,135.74,135.65,16.06]
[1763566671628,0.05322146,135.71,135.68,0.0546919]
[1763566672025,3.32322146,135.71,135.68,0.0546919]
[1763566675533,0.05322146,135.71,135.68,0.0546919]
[1763566677520,3.32322146,135.71,135.68,0.0546919]
[1763566678131,5.39217566,135.7,135.68,0.0546919]
[1763566678338,5.39217566,135.69,135.68,0.0546919]
[1763566680229,8.66217566,135.69,135.68,0.0546919]
[1763566680631,8.66217566,135.69,135.6,6.6416]
[1763566680842,15.34806796,135.68,135.61,16.06]
[1763566681031,12.07806796,135.67,135.6,16.06]
[1763566681238,8.66217566,135.66,135.61,6.6413]
[1763566681434,8.66217566,135.65,135.56,6.03282675]
[1763566681636,3.27,135.61,135.52,22.26576922]
[1763566681829,6.6858923,135.62,135.49,191.8401]
[1763566681830,15.34806796,135.6,135.51,16.06]
[1763566682027,3.27,135.58,135.51,16.06]